Cogmind - Beta 16 @@@ ROGUE MODE // 2025.12.28 @ 15:53:14 Player: tanukistars115 Result: Core destroyed Performance ------------- Evolutions (1) 500 Regions Visited (2) 400 Robots Destroyed (19) 95 Value Destroyed (508) 508 Prototype IDs (0) 0 Alien Tech Used (0) 0 Bonus (0) 0 TOTAL SCORE: 1503 Bonus ------- None Cogmind --------- Core Integrity 0/400 Matter 92/300 Energy 212/265 System Corruption 0% Temperature Critical (552) Movement Treading (240) Ox1 Location -9/Materials Parts ------- > --- POWER (1) -------- Improved Ion Engine > --- PROPULSION (2) --- Light Treads > --- UTILITY (3) ------ Medium Storage Unit Sensor Array Light Armor Plating > --- WEAPON (3) ------- Particle Gun Particle Gun Particle Gun > --- INVENTORY (10) --- (None) Peak State ------------ > --- POWER ------------ Improved Ion Engine > --- PROPULSION ------- Light Treads > --- UTILITY ---------- Medium Storage Unit Sensor Array Light Armor Plating > --- WEAPON ----------- Particle Gun Particle Gun Particle Gun > --- INVENTORY -------- (None) [Rating: 12] Favorites ----------- Power Ion Engine Engine Ion Engine Propulsion Light Treads Treads Light Treads Utility Medium Storage Unit Device Sensor Array Storage Medium Storage Unit Protection Core Shielding Weapon EM Pulse Gun Energy Gun EM Pulse Gun Ballistic Gun Light Assault Rifle Ballistic Cannon Light Cannon Launcher Grenade Launcher Build | -11 -10 -9 ------- Run | Yrd Mat Mat Slots Evolved 2 | . . 2 Power . | . . . Propulsion . | . . . Utility 1 | . . 1 Weapon 1 | . . 1 Parts Attached 19 | 6 4 9 Power 2 | 1 . 1 Engine 2 | 1 . 1 Core . | . . . Reactor . | . . . Propulsion 3 | 2 . 1 Treads 3 | 2 . 1 Leg . | . . . Wheel . | . . . Hover . | . . . Flight . | . . . Utility 7 | 1 3 3 Device 1 | . . 1 Storage 3 | 1 2 . Processor . | . . . Hackware . | . . . Protection 3 | . 1 2 Artifact . | . . . Weapon 7 | 2 1 4 Energy Gun 4 | 1 . 3 Energy Cannon . | . . . Ballistic Gun 1 | 1 . . Ballistic Cannon 1 | . . 1 Launcher 1 | . 1 . Special Weapon . | . . . Impact Weapon . | . . . Slashing Weapon . | . . . Piercing Weapon . | . . . Special Melee Weapon . | . . . Unidentified Prototypes . | . . . Parts Lost 9 | . 1 8 Power 1 | . . 1 Propulsion 2 | . . 2 Utility 3 | . 1 2 Weapon 3 | . . 3 Highest Loss Streak 6 | . 1 6 To Critical Strikes 1 | . . 1 Average Backups . | . . . Power . | . . . Propulsion . | . . . Utility . | . . . Weapon . | . . . Tool/Special . | . . . Unused Backups . | . . . Power . | . . . Propulsion . | . . . Utility . | . . . Weapon . | . . . Tool/Special . | . . . Average Slot Usage (%) 83 | . 91 70 Engine 11 | . 14 6 Treads 21 | . 28 11 Storage 17 | . 17 18 Protection 5 | . 3 8 Energy Gun 13 | . 14 13 Ballistic Cannon 1 | . . 5 Launcher 9 | . 12 3 Peak Build Rating 12 | 6 7 12 Average Rating 6 | 4 6 7 On Entrance 4 | . 6 7 Avg Prop Armor Cover (%) . | . . . Naked Turns . | . . . Heaviest Build 30 | 13 24 30 Greatest Support 40 | 40 40 40 Greatest Overweight (x) 7 | . . 7 Average Overweight (x) . | . . 1 Largest Inventory Capacity 10 | 8 10 10 Average Capacity 9 | 6 9 10 Most Carried 3 | 3 3 2 Average Carried . | . . . Final Capacity 10 | 8 10 10 Final Carried 3 | . 3 . Class Distribution -------------------- 77% | Mutant 22% | Tank Dominant Class ---------------- Mutant | -10/Materials Tank | -9/Materials Resources | -11 -10 -9 ----------- Run | Yrd Mat Mat Matter Collected 310 | 79 86 145 Remotely . | . . . Salvage Created 412 | . 174 238 Parts 39 | . 16 23 Haulers Intercepted . | . . . Recyclers Shooed . | . . . Parts Field Recycled . | . . . Retrieved Matter . | . . . Parts Self-Destructed . | . . . Prevented . | . . . Parts Restored . | . . . Kills | -11 -10 -9 ------- Run | Yrd Mat Mat Combat Hostiles Destroyed 16 | . 8 8 Guns 8 | . 2 6 Cannons 1 | . . 1 AOE 7 | . 6 1 Classes Destroyed 5 | . 3 2 Watcher 3 | . 2 1 Swarmer 7 | . 3 4 Grunt 7 | . 5 2 Duelist 1 | . . 1 Sentry 1 | . . 1 Best Kill Streak 3 | . 3 3 Combat Bots Only 3 | . 3 3 Max Kills in Single Turn 2 | . 2 1 Gunslinging . | . . . Exploded 2 | . 2 1 Melee . | . . . Uniques/NPCs Destroyed . | . . . Combat | -11 -10 -9 -------- Run | Yrd Mat Mat Hostile Shots Fired 180 | . 28 152 Missed 52 | . 4 48 Hits 128 | . 24 104 Melee 1 | . . 1 Projectile 127 | . 24 103 Critical Strikes 3 | . 1 2 Damage Taken 1481 | . 430 1051 Core 470 | . 65 405 Absorbed by Shields . | . . . Redirected to Shielding 52 | . . 52 Core Remaining (%) 87 | 100 74 . Volleys Fired 50 | . 24 26 Largest 3 | . 2 3 Hottest 195 | . 70 195 Shots Fired 77 | . 38 39 Gun 52 | . 24 28 Cannon 11 | . . 11 Launcher 14 | . 14 . Special . | . . . Kinetic 11 | . . 11 Thermal 17 | . . 17 Explosive 14 | . 14 . Electromagnetic 35 | . 24 11 Robot Hit Streak 7 | . 7 5 Robot Miss Streak 4 | . 3 4 Penetration Max . | . . . Secondary Targets . | . . . Shots Hit Robots 42 | . 22 20 Core Hits 34 | . 22 12 Critical Kills . | . . . Critical Parts Destroyed . | . . . Critical Strikes 1 | . . 1 Burn 1 | . . 1 Melee Attacks . | . . . Impact . | . . . Slashing . | . . . Piercing . | . . . Sneak Attacks . | . . . Combat Hostiles . | . . . Follow-up Attacks . | . . . Damage Inflicted 1194 | . 788 406 Guns 481 | . 238 243 Cannons 105 | . . 105 Explosions 597 | . 539 58 Melee . | . . . Ramming 11 | . 11 . Kinetic 105 | . . 105 Thermal 256 | . 50 206 Explosive 489 | . 489 . Electromagnetic 333 | . 238 95 Impact . | . . . Slashing . | . . . Piercing . | . . . Highest Corruption . | . . . Average Corruption . | . . . Corruption Purged . | . . . Corruption Blocked . | . . . Overload Shots . | . . . Overflow Damage . | . . . Projectiles . | . . . Explosions . | . . . Melee . | . . . Knockbacks 4 | . 1 3 Impact 1 | . 1 . Kinetic 2 | . . 2 Secondary 1 | . . 1 Self-Inflicted Damage 149 | . 149 . Shots 5 | . 5 . Rammed 3 | . 3 . Targets Rammed 3 | . 3 . Kicked . | . . . Crushed . | . . . Highest Temperature 552 | . 171 552 Average Temperature 68 | . 54 93 Received Heat Transfer 306 | . 165 141 Effects 2 | . . 2 Energy Bleed 1 | . . 1 Damage (core) 1 | . . 1 Siege Activations . | . . . Martial Activations . | . . . Shielding Activations . | . . . Robots Disrupted 1 | . 1 . Combat Hostiles 1 | . 1 . Robots Corrupted . | . . . Combat Hostiles . | . . . Parts Fried . | . . . Impact Corruptions . | . . . Robots Melted . | . . . Combat Hostiles . | . . . Parts Melted 2 | . . 2 Heat Transferred 644 | . 100 544 Parts Sabotaged . | . . . Parts Stolen . | . . . Parts Stripped . | . . . Power Chain Reactions 2 | . 1 1 Alert | -11 -10 -9 ------- Run | Yrd Mat Mat Maximum Alert Level 1 | . 1 . Low Security (%) 88 | 100 80 100 Level 1 11 | . 19 . Level 2 . | . . . Level 3 . | . . . Level 4 . | . . . Level 5 . | . . . High Security . | . . . Max Security . | . . . Peak Influence 299 | . 299 170 Initial 122 | . . 122 Average 91 | . 85 125 Influence Increases 656 | . 416 240 Destroy 0b10 Robot/C 320 | . 160 160 Destroy 0b10 Robot/NC 15 | . 10 5 Destroy Leader 86 | . 44 42 Disable Machine 90 | . 60 30 Destroy Structure 85 | . 82 3 Lose Combat Pursuer 60 | . 60 . Influence Decreases 494 | . 125 369 Entered New Map 169 | . . 169 Time Decay 235 | . 115 120 Lost Part 90 | . 10 80 Squads Dispatched 3 | . 3 . Investigation 2 | . 2 . Extermination . | . . . Reinforcement 1 | . 1 . Assault . | . . . Garrison . | . . . Intercept . | . . . Searches Triggered . | . . . Construction Impeded . | . . . Haulers Reinforced . | . . . Active Scanning Responses . | . . . Cargo Convoy Interrupts . | . . . Stealth | -11 -10 -9 --------- Run | Yrd Mat Mat Distress Signals 2 | . 1 1 Communications Jammed . | . . . Distress Signals . | . . . Times Spotted 30 | . 13 17 Peak Tracking Total 9 | . 4 9 Tactical Retreats 4 | . 4 . Traps | -11 -10 -9 ------- Run | Yrd Mat Mat Traps Triggered 1 | . 1 . Indirectly . | . . . Trap Hack Attempts . | . . . Triggered . | . . . Disarmed . | . . . Reprogrammed . | . . . Reused . | . . . Traps Extracted . | . . . Installed . | . . . Triggered . | . . . Machines | -11 -10 -9 ---------- Run | Yrd Mat Mat Machines Disabled 6 | . 4 2 Max in Single Turn 2 | . 2 1 Machines Repaired . | . . . Machines Dismantled . | . . . Machines Sabotaged . | . . . Overloaded Fab Kills . | . . . Hacking | -11 -10 -9 --------- Run | Yrd Mat Mat Machines Accessed 3 | . 3 . Terminals 3 | . 3 . Fabricators . | . . . Repair Stations . | . . . Recycling Units . | . . . Scanalyzers . | . . . Garrison Access . | . . . Total Hacks 14 | . 14 . Successful 8 | . 8 . Failed 6 | . 6 . Catastrophic 2 | . 2 . Database Lockouts . | . . . Manual . | . . . Terminals 14 | . 14 . Fabricators . | . . . Repair Stations . | . . . Recycling Units . | . . . Scanalyzers . | . . . Garrison Access . | . . . Terminal Hacks 8 | . 8 . Record 7 | . 7 . Alert Level 1 | . 1 . Fabricator Hacks . | . . . Repair Station Hacks . | . . . Recycling Unit Hacks . | . . . Scanalyzer . | . . . Garrison Access Hacks . | . . . Unauthorized Hacks . | . . . Terminals . | . . . Fabricators . | . . . Repair Stations . | . . . Recycling Units . | . . . Scanalyzers . | . . . Garrison Access . | . . . Data Cores Recovered . | . . . Used . | . . . Hacking Detections 3 | . 3 . Full Trace Events 2 | . 2 . Feedback Events . | . . . Feedback Blocked . | . . . Robot Schematics Acquired . | . . . Robots Built . | . . . Authchips . | . . . Time . | . . . Total Robot Build Rating . | . . . Part Schematics Acquired . | . . . Parts Built . | . . . Authchips . | . . . Time . | . . . Total Part Build Rating . | . . . Part Studies Acquired . | . . . Parts Repaired . | . . . Time . | . . . Parts Recycled . | . . . Recycled Matter . | . . . Retrieved Matter . | . . . Retrieved Components . | . . . Parts Scanalyzed . | . . . Part Schematics Acquired . | . . . Parts Damaged . | . . . Bothacking | -11 -10 -9 ------------ Run | Yrd Mat Mat Used RIF Installer . | . . . Robots Hacked . | . . . Non-combat . | . . . Combat . | . . . Robot Hacks Applied . | . . . Relay Couplers Released . | . . . Fabnet Peak Effective % . | . . . Robots Rewired . | . . . Allies Hacked . | . . . Hacks Repelled . | . . . Allies | -11 -10 -9 -------- Run | Yrd Mat Mat Total Allies . | . . . Largest Group . | . . . Highest-Rated Group . | . . . Highest-Rated Ally . | . . . Total Orders . | . . . Ally Attacks . | . . . Total Damage . | . . . Kills . | . . . Allies Corrupted . | . . . Allies Melted . | . . . Intel | -11 -10 -9 ------- Run | Yrd Mat Mat Active Infowar (turns) 63 | . . 63 Sensors 63 | . . 63 Robot Analysis Total . | . . . Derelict Logs Recovered . | . . . Drone Launches . | . . . Drone Recoveries . | . . . Exploration | -11 -10 -9 ------------- Run | Yrd Mat Mat Turns Passed 731 | 64 416 251 Spaces Moved 331 | 39 209 83 Core 35 | 8 . 27 Treads 296 | 31 209 56 Legs . | . . . Wheels . | . . . Hover . | . . . Flight . | . . . Fastest Speed 50 | 50 160 160 Average Speed 170 | 137 160 211 Slowest Speed 400 | 160 160 400 Overloaded Moves . | . . . Propulsion Burnouts . | . . . Robots Hopped . | . . . Potential Cave-ins . | . . . Cave-ins Triggered . | . . . Exploration Rate (%) 22 | 3 55 9 Regions Visited 2 Branch Regions . Pre-discovered Areas . | . . . Known Exits Taken . | . . . Unknown Exits Taken 2 | 1 1 . Scrap Searched . | . . . Spaces Dug . | . . . Terrain Destroyed 86 | . 83 3 Melee . | . . . Projectile . | . . . AOE 86 | . 83 3 Terrain Rammed . | . . . Walls Destroyed . | . . . Machines Disabled . | . . . Actions | -11 -10 -9 --------- Run | Yrd Mat Mat Total 425 | 50 251 124 Wait 3 | . 3 . Move 329 | 38 208 83 Hop . | . . . Pick Up 19 | 6 7 6 Fast Attach . | . . . Attach 17 | 6 2 9 Detach . | . . . Swap 2 | . 2 . Drop 2 | . 2 . Fire 50 | . 24 26 Melee . | . . . Ram . | . . . Kick . | . . . Crush 3 | . 3 . Escape Stasis . | . . . Rewire . | . . . Trap . | . . . Miscellaneous . | . . . Route ------- -11/Scrapyard -10/Materials -9/Materials History --------- Turn | Location | Event 3 | -11/Scrapyard | Discovered new exit (range 16) 65 | -11/Scrapyard | Entered Materials 307 | -10/Materials | Build established: Mutant 450 | -10/Materials | Discovered new exit (range 7) 481 | -10/Materials | Entered another Materials area 481 | -9/Materials | Evolved 2 slots: Utility x1, Weapon x1 624 | -9/Materials | Core integrity fell below 50% 638 | -9/Materials | Lost 6 parts (1p2n3w) 652 | -9/Materials | Core integrity fell below 20% 733 | -9/Materials | Core destroyed Last Messages --------------- Y-45 Defender destroyed. Acquired Particle Gun. R-06 Scavenger collects Lgt. Ion Engine. Acquired Lgt. Treads. Acquired Lgt. Armor Plating. Acquired 9 matter. R-06 Scavenger collects Hvy. Assault Rifle. Acquired Imp. Ion Engine. K-01 Serf collects debris. R-06 Scavenger collects Lgt. Ion Engine. W-16 Scout sends out distress signal. W-16 Scout suffers critical hit (Burn). Hover Unit melted. W-16 Scout destroyed. R-06 Scavenger collects Visual Processing Unit. S-10 Pest destroyed. R-06 Scavenger collects Lgt. Ion Engine. S-10 Pest destroyed. Overheating: Energy bleed (-56). Overheating: Core damaged (-56). Map ----- +----------------------------------------------------+ | | | ?????????????????????????????????????????????????? | | ?????????????????????????????????????????????????? | | ?????????????????????????????????????????????????? | | ?????????????????????????????????????????????????? | | ?????????????????????????????????????????????????? | | ?????????????????????????????????????????????????? | | ???????????????????????????#######???????????????? | | ???????????????????????????# #???????????????? | | ???????????????????????????# !! #???????????????? | | ???????????????????????????# != #???????????????? | | ???????????????????????????# != #???????????????? | | ???????????????????????????# #???????????????? | | ???????????????????????????# [ #???????????????? | | ??????????????##########???# #???????????????? | | ??????????????# ##### """ #???????????????? | | ??????????????# ! # # """ #???????????????? | | ??????????????#[ [# # """ #???????????????? | | ??????????????#[ [ # # #???????????????? | | ??????????????# %?%+ + #???????????????? | | ??????????????# """ ! #m #######???????????????? | | ??????????????# """ ! # #?????????????????????? | | ??????????????# """ # u#?????????????????????? | | ??????????????# # #?????????????????????? | | ??????????????########## #?????????????????????? | | ???????????????????????# @ #?????????????????????? | | ???????????????????????# *#?????????????????????? | | ???????????????????????# %%#?????????????????????? | | ???????????????????????#[=*##????????????????????? | | ??????????????########## %=##????????????????????? | | ?????????? [%%### ###??????????????? | | ?????????? ? ???????? | | ?????????? ? ???????? | | ??????????? % ? ???????? | | ??????????? % r ####### #????????? | | ???????????? """ "" ==%#????????####????????? | | ??????????????"" """ *%=#????????????????????? | | ??????????????"" """ !!s#????????????????????? | | ????????????????? """ !! ????????????????????? | | ??????????????????""" !! ????????????????????? | | ??????????????????? ????????????????????? | | ?????????????????? ???????????????????? | | ??????????????????? ???????????????????? | | ?????????????????? ???????????????????? | | ??????????????????? T ???????????????????? | | ?????????????????????? ???????????????????? | | ????????????????????????? ????????????????????? | | ?????????????????????????????????????????????????? | | ?????????????????????????????????????????????????? | | ?????????????????????????????????????????????????? | +----------------------------------------------------+ Best States ------------- Heat Dissipation 28 Energy Generation 12 Energy Capacity 500 Matter Stores 147 Matter Capacity 300 Sight Range 16 Robot Scan Range 14 Terrain Scan Density 10 Armor Coverage 150 Core Shielding 20 Evasion (%) 40 Recoil Reduction 2 Item Schematics ----------------- None Robot Schematics ------------------ None Fabricated ------------ Nothing Repaired ---------- Nothing Studied --------- None Alien Tech Used ----------------- None Achievements -------------- Bumper Bots Challenges ------------ None Game ------ Seed GatlingCoilMatter Manual? 0 Play Time 00:11:22 Cumulative 3.8 hours Start 2025.12.28 @ 15:44:52 End 2025.12.28 @ 15:53:14 Sessions 1 Manual Loads 0 Difficulty Rogue Special Mode None Game No. 12 Rogue 12 Adventurer 0 Explorer 0 Win Type - Total 0 Types 0/0/0/0/0/0/0/0/0/0 Lore% 6 Gallery% 8 Achievement% 10 Wizard Run 0 Options --------- Layout 1 ASCII 1 Keyboard 0 Movement Mouse Keybinds 0 Fullscreen 2 Font 32/SmallcapsGlow Map View 50x35 Zoom Use 0% Tactical HUD 0 Map Filters NONE Filters NONE Steam 1 RUN: 93f00a8a-c4c5-48b9-bba0-d4da375f13bd